bitfinex/quotes_BTCUSD_20251231
["timestamp","ask_amount","ask_price","bid_price","bid_amount"]
[1767193902040,0.00035449,88329.0,88319.0,0.01132259]
[1767193902239,0.00035449,88329.0,88318.0,0.01132272]
[1767193902414,0.05015567,88329.0,88313.0,0.01132336]
[1767193902615,0.05015567,88329.0,88312.0,0.02272348]
[1767193902824,0.05015567,88329.0,88312.0,0.0114]
[1767193903020,0.05015567,88329.0,88305.0,0.01132438]
[1767193903306,0.05015567,88329.0,88307.0,0.0114]
[1767193903552,0.05015567,88329.0,88312.0,0.01132348]
[1767193903775,0.05015567,88329.0,88312.0,0.05661741]
[1767193903993,0.04980118,88327.0,88312.0,0.01132348]
[1767193904200,0.04980118,88327.0,88299.0,0.00205286]
[1767193904357,0.05035018,88312.0,88299.0,0.001]
[1767193904736,0.04980118,88312.0,88299.0,0.001]
[1767193905415,0.0114,88316.0,88286.0,0.0002341]
[1767193905416,0.04980118,88299.0,88286.0,0.0002341]
[1767193905629,0.04980118,88299.0,88280.0,0.002]
[1767193905630,0.000234,88300.0,88280.0,0.002]
[1767193905631,0.04980118,88285.0,88280.0,0.002]
[1767193905843,0.04980118,88285.0,88266.0,0.0002]
[1767193906049,0.04980118,88279.0,88266.0,0.0002]
[1767193906275,0.04980118,88279.0,88256.0,0.01133067]
[1767193906276,0.06120118,88279.0,88251.0,0.01133131]
[1767193906678,0.06155545,88279.0,88251.0,0.01133131]
[1767193906887,0.06155545,88279.0,88242.0,0.23218527]
[1767193907057,0.06155545,88279.0,88249.0,0.06798919]
[1767193907290,0.06155545,88279.0,88248.0,0.06798993]
[1767193907456,0.06155545,88279.0,88251.0,0.01133131]
[1767193907658,0.06155545,88279.0,88251.0,0.06798768]
[1767193907913,0.06155545,88279.0,88252.0,0.01133118]
[1767193908294,0.06155545,88279.0,88242.0,0.00553734]
[1767193908543,0.06155545,88279.0,88236.0,0.01133324]
[1767193908544,0.04980118,88277.0,88236.0,0.01133324]
[1767193908659,0.01175427,88279.0,88242.0,0.01133247]
[1767193908660,0.739022,88274.0,88242.0,0.01133247]
[1767193908866,0.04980118,88271.0,88242.0,0.01133247]
[1767193909095,0.04980118,88269.0,88241.0,0.0679953]
[1767193909305,0.04980118,88269.0,88232.0,0.0114]
[1767193909690,0.04980118,88269.0,88233.0,0.01133362]
[1767193909813,0.04980118,88269.0,88232.0,0.01133375]
[1767193909998,0.04980118,88269.0,88232.0,0.06800235]
[1767193910204,0.04980118,88269.0,88233.0,0.01133362]
[1767193910406,0.04980118,88267.0,88234.0,0.01133349]
[1767193910606,0.04980118,88267.0,88227.0,0.02692576]
[1767193910607,0.04980118,88263.0,88227.0,0.02692576]
[1767193911236,0.04980118,88263.0,88196.0,0.00024019]
[1767193911237,0.04675269,88226.0,88200.0,0.0027]
[1767193911469,0.000268,88227.0,88192.0,0.01133889]
[1767193911470,0.04675269,88195.0,88192.0,0.01133889]
[1767193911641,0.00053278,88196.0,88150.0,1.27811286]
[1767193911642,0.04647169,88193.0,88151.0,0.000281]
[1767193911841,0.04647169,88193.0,88168.0,0.01134198]
[1767193912064,0.04647169,88193.0,88150.0,0.143683]
[1767193912065,0.04647169,88193.0,88162.0,0.22685344]
[1767193912266,0.04647169,88193.0,88150.0,1.04123482]
[1767193912651,0.04682531,88193.0,88159.0,0.01134314]
[1767193912847,0.04682531,88193.0,88150.0,0.143683]
[1767193912848,0.04675269,88170.0,88150.0,0.143683]
[1767193913069,0.000441,88171.0,88150.0,0.143683]
[1767193913070,0.04675269,88168.0,88150.0,0.143683]
[1767193913267,0.04675269,88168.0,88150.0,0.043683]
[1767193913420,0.06284158,88193.0,88150.0,0.043683]
[1767193913421,0.04675269,88166.0,88150.0,0.043683]
[1767193913624,0.04675269,88190.0,88156.0,0.01134352]
[1767193913801,0.00053278,88196.0,88152.0,0.000831]
[1767193913802,0.04675269,88188.0,88152.0,0.000831]
[1767193914002,0.04675269,88184.0,88150.0,0.043683]
[1767193914238,4.1748,88181.0,88150.0,0.043683]
[1767193914436,0.04675269,88178.0,88150.0,0.043683]
[1767193914750,0.04675269,88176.0,88150.0,0.043683]
[1767193915182,0.04675269,88176.0,88152.0,0.01134404]
[1767193915330,0.00035362,88178.0,88151.0,0.05672041]
[1767193915331,0.05819269,88175.0,88156.0,0.01134352]
[1767193915514,0.05819269,88175.0,88157.0,0.00672012]
[1767193916121,0.01144,88174.0,88157.0,0.00672012]
[1767193916324,0.01144,88173.0,88157.0,0.00672012]
[1767193916542,0.05819269,88173.0,88157.0,0.00672012]
[1767193916746,0.05819269,88173.0,88150.0,0.043683]
[1767193917502,0.05819269,88173.0,88151.0,0.06806488]
[1767193917707,0.05819269,88173.0,88150.0,0.044514]
[1767193918105,0.04675269,88171.0,88150.0,0.043683]
[1767193918321,0.04675269,88171.0,88130.0,0.01134687]
[1767193918323,0.00053286,88172.0,88121.0,0.01134803]
[1767193918324,0.04675269,88149.0,88121.0,0.01134803]
[1767193918522,0.000549,88150.0,88120.0,0.0002563]
[1767193918523,5.05,88146.0,88120.0,0.0002563]
[1767193918734,0.04675269,88143.0,88120.0,0.03491133]
[1767193918928,0.04675269,88169.0,88135.0,0.05673101]
[1767193919135,0.00158317,88200.0,88133.0,0.01134648]
[1767193919136,0.04675269,88167.0,88133.0,0.01134648]
[1767193919335,0.04675269,88167.0,88130.0,0.01148]
[1767193919336,0.04675269,88165.0,88137.0,0.01134597]
[1767193919577,0.04675269,88163.0,88132.0,0.01134661]
[1767193919784,0.0003534,88165.0,88133.0,0.01022562]
[1767193919785,0.04675269,88160.0,88133.0,0.01022562]
[1767193920010,0.04675269,88158.0,88125.0,0.01148]
[1767193920207,0.04675269,88156.0,88120.0,0.0002563]
[1767193920444,0.04675269,88154.0,88129.0,0.011347]
[1767193920644,0.00053286,88153.0,88130.0,0.61512136]
[1767193920795,0.01148,88152.0,88134.0,0.01134635]
[1767193920975,0.01148,88152.0,88126.0,0.22694562]
[1767193920976,0.05823269,88152.0,88135.0,0.00909064]
[1767193921174,0.05823269,88152.0,88120.0,0.0117363]
[1767193921374,0.05823269,88152.0,88123.0,0.01134777]
[1767193921572,0.05823269,88152.0,88121.0,0.01134803]
[1767193921771,0.05823269,88152.0,88125.0,0.01134751]
[1767193922014,0.05823269,88152.0,88126.0,0.0102518]
[1767193922546,0.05823269,88152.0,88127.0,0.01134726]
[1767193922711,0.04675269,88152.0,88136.0,0.0113461]
[1767193922910,0.04675269,88152.0,88124.0,0.03465503]
[1767193922911,0.01148,88151.0,88128.0,0.05673565]
[1767193923092,0.01148,88151.0,88123.0,0.2383017]
[1767193923093,0.04675269,88163.0,88142.0,0.01134532]
[1767193923306,0.0002,88161.0,88141.0,0.0002]
[1767193923478,0.01148,88160.0,88143.0,0.0113452]
[1767193923887,0.01148,88160.0,88142.0,0.00682758]
[1767193924079,0.05823269,88160.0,88142.0,0.00682758]
[1767193924479,0.04785169,88142.0,88123.0,0.01148]
[1767193924692,0.04785169,88142.0,88120.0,0.0002563]
[1767193924693,0.04675269,88140.0,88120.0,0.0002563]
[1767193925175,0.04675269,88140.0,88121.0,0.01134803]
[1767193925404,0.04675269,88140.0,88120.0,0.0002563]
[1767193926728,0.04675269,88138.0,88120.0,0.0002563]
[1767193927865,0.04710609,88138.0,88120.0,0.0002563]
[1767193928272,0.04710609,88138.0,88117.0,0.0001]
[1767193928273,0.000256,88120.0,88117.0,0.0001]
[1767193928545,0.0003534,88138.0,88106.0,0.01134996]
[1767193928546,0.0001,88117.0,88106.0,0.01134996]
[1767193928772,0.0001,88117.0,88103.0,0.06810181]
[1767193928773,0.01148,88122.0,88103.0,0.01135035]
[1767193929035,0.04675269,88121.0,88103.0,0.01135035]
[1767193929287,0.04675269,88121.0,88111.0,0.36317242]
[1767193929474,0.04675269,88121.0,88086.0,0.01135254]
[1767193929475,0.01148,88122.0,88076.0,0.01148]
[1767193929476,0.036684,88116.0,88076.0,0.01148]
[1767193929677,0.036684,88103.0,88067.0,0.0498913]
[1767193929905,0.036684,88099.0,88067.0,0.0498913]
[1767193930128,0.0365383,88095.0,88064.0,0.01135537]
[1767193930344,0.08852335,88102.0,88065.0,0.0498913]
[1767193930345,0.0365383,88093.0,88065.0,0.0498913]
[1767193930553,0.0365383,88093.0,88056.0,0.01148]
[1767193930554,0.03466257,88089.0,88061.0,0.01135576]
[1767193930753,0.01148,88092.0,88059.0,0.05677983]
[1767193930754,0.03466257,88087.0,88060.0,0.06124719]
[1767193930964,5.05,88086.0,88060.0,0.0498913]
[1767193931118,0.03466257,88085.0,88054.0,0.0498913]
[1767193931335,0.03466257,88085.0,88053.0,0.06834051]
[1767193931336,4.76,88083.0,88043.0,0.12251698]
[1767193931534,0.01148,88084.0,88030.0,0.66052136]
[1767193931535,0.46675269,88082.0,88056.0,0.0498913]
[1767193931681,0.46675269,88082.0,88040.0,0.61512136]
[1767193931683,0.01148,88084.0,88011.0,0.05580262]
[1767193931684,0.04675269,88078.0,88011.0,0.05580262]
[1767193931886,1.2967,88077.0,88051.0,0.0498913]
[1767193932097,1.2967,88077.0,88040.0,0.61512136]
[1767193932098,0.04675269,88072.0,88043.0,0.0498913]
[1767193932483,0.00053286,88073.0,87987.0,0.11796466]
[1767193932484,0.00053286,88073.0,88058.0,0.0498913]
[1767193932610,0.01148,88071.0,88047.0,0.01135757]
[1767193932832,0.01148,88071.0,88051.0,0.0498913]
[1767193933398,0.01148,88071.0,88039.0,0.0113586]
[1767193933399,0.000549,88051.0,88039.0,0.0113586]
[1767193933554,0.000549,88051.0,88035.0,0.10668666]
[1767193933555,0.01148,88053.0,88035.0,0.0498913]
[1767193933761,0.01148,88057.0,88035.0,0.0498913]
[1767193933920,0.01148,88057.0,88036.0,0.01135898]
[1767193934116,0.01148,88057.0,88028.0,0.01136002]
[1767193934117,0.04675269,88090.0,88056.0,0.00024775]
[1767193934372,0.0002,88067.0,88048.0,0.0498913]
[1767193934580,0.01148,88066.0,88049.0,0.0498913]
[1767193934922,0.01148,88069.0,88051.0,0.0498913]
[1767193935151,0.01148,88068.0,88052.0,0.0498913]
[1767193935366,0.01148,88071.0,88052.0,0.0498913]
[1767193936812,0.01148,88073.0,88061.0,0.0498913]
[1767193937017,0.01148,88076.0,88061.0,0.0498913]
[1767193937232,0.001099,88061.0,88051.0,0.00035275]
[1767193937434,0.01148,88065.0,88051.0,0.00035275]
[1767193937640,0.01148,88065.0,88025.0,0.0113604]
[1767193937641,0.04675269,88063.0,88021.0,0.0498913]
[1767193937842,0.04675269,88063.0,88017.0,0.01136144]
[1767193937843,8.00233824,88062.0,88017.0,0.01136144]
[1767193938038,0.04675269,88058.0,88015.0,0.0498913]
[1767193938195,0.04675269,88054.0,88015.0,0.0498913]
[1767193938395,0.04675269,88054.0,88012.0,0.01152]
[1767193938396,0.00035275,88063.0,88028.0,0.0498913]
[1767193938614,0.00035275,88063.0,88007.0,0.34088164]
[1767193938615,3.6261,88061.0,88037.0,0.0498913]
[1767193938821,4.76,88060.0,88037.0,0.0498913]
[1767193939020,1.7265,88059.0,88037.0,0.0498913]
[1767193939264,0.2868,88062.0,88037.0,0.0498913]
[1767193939473,0.00035275,88063.0,88037.0,0.0498913]
[1767193939474,0.01152,88061.0,88037.0,0.0498913]
[1767193939678,0.01152,88061.0,88058.0,0.00024076]
[1767193939883,0.01152,88061.0,88058.0,7.6e-07]
[1767193940222,0.05802793,88061.0,88058.0,7.6e-07]
[1767193940442,0.01152,88061.0,88058.0,7.6e-07]
[1767193941270,0.00035275,88063.0,88058.0,7.6e-07]
[1767193941677,0.05090847,88080.0,88058.0,7.6e-07]
[1767193941678,0.01152,88080.0,88058.0,7.6e-07]
[1767193941852,0.01152,88083.0,88062.0,0.05013882]
[1767193942051,0.3873,88082.0,88062.0,0.06149445]
[1767193942235,0.1761,88082.0,88062.0,0.05013882]
[1767193942436,4.6053,88085.0,88062.0,0.05013882]
[1767193942775,3.5682,88085.0,88062.0,0.05013882]
[1767193942969,0.8796,88084.0,88062.0,0.05013882]
[1767193943177,0.5233,88085.0,88062.0,0.05013882]
[1767193943937,0.01152,88086.0,88062.0,0.05013882]
[1767193944140,0.04544,88098.0,88062.0,0.05013882]
[1767193944141,0.04544,88101.0,88068.0,0.01135486]
[1767193944285,0.04544,88101.0,88069.0,0.05013882]
[1767193944286,0.06242847,88100.0,88069.0,0.05013882]
[1767193944496,0.04544,88101.0,88062.0,0.01135563]
[1767193944497,1.585344,88106.0,88071.0,0.05013882]
[1767193944692,1.585344,88106.0,88062.0,0.01135563]
[1767193944693,0.000309,88071.0,88059.0,0.05013882]
[1767193944852,0.05090847,88085.0,88063.0,0.01152]
[1767193944853,0.01152,88080.0,88063.0,0.01152]
[1767193945054,0.01152,88080.0,88059.0,0.05013882]
[1767193945454,0.05090847,88093.0,88063.0,0.05013882]
[1767193945655,0.02929909,88113.0,88048.0,0.0002]
[1767193945656,0.05090847,88091.0,88048.0,0.01155744]
[1767193945872,0.04544,88099.0,88048.0,0.01155744]
[1767193945873,0.05090847,88087.0,88057.0,0.01152]
[1767193946249,0.05090847,88087.0,88059.0,0.05013882]
[1767193946447,0.01134957,88109.0,88048.0,0.0002]
[1767193946448,0.05090847,88085.0,88061.0,0.05013882]
[1767193946671,0.02929909,88109.0,88048.0,0.04564]
[1767193946672,0.01152,88086.0,88059.0,0.05013882]
[1767193946828,0.00055,88059.0,88058.0,0.00010706]
[1767193947026,0.05090847,88062.0,88058.0,7.6e-07]
[1767193947810,0.05090847,88060.0,88026.0,0.05013882]
[1767193948018,0.05090847,88056.0,88026.0,0.05013882]
[1767193948416,0.548388,88055.0,88026.0,0.05013882]
[1767193948601,0.05090847,88052.0,88026.0,0.05013882]
[1767193948803,5.46787647,88051.0,88026.0,0.05013882]
[1767193949039,0.05090847,88050.0,88026.0,0.04513882]
[1767193949451,0.05090847,88050.0,88015.0,0.01152]
[1767193949452,0.05090847,88048.0,88016.0,0.05013882]
[1767193949652,7.493808,88049.0,88016.0,0.05013882]
[1767193949653,1.334479,88045.0,88016.0,0.05013882]
[1767193949911,0.01152,88044.0,88016.0,0.05013882]
[1767193950433,0.01152,88044.0,88015.0,0.01152]
[1767193950434,0.05090847,88047.0,88025.0,0.06149922]
[1767193950709,0.01152,88046.0,88044.0,0.00024]
[1767193950905,0.06242847,88045.0,88009.0,0.01136247]
[1767193951107,0.06242847,88045.0,88010.0,0.0683314]
[1767193951108,0.05090847,88041.0,88010.0,0.0683314]
[1767193951352,0.05090847,88041.0,88011.0,0.05013882]
[1767193951548,0.01776285,88044.0,88011.0,0.05013882]
[1767193951549,0.08156508,88040.0,88011.0,0.05013882]
[1767193951765,0.08156508,88040.0,88000.0,32.032956]
[1767193951766,0.05090847,88039.0,88000.0,32.032956]
[1767193951943,0.05090847,88035.0,88003.0,0.0775217]
[1767193952118,1.8998,88032.0,88004.0,0.05013882]
[1767193952317,0.05090847,88033.0,88004.0,0.05013882]
[1767193952514,0.057,88032.0,88004.0,0.05013882]
[1767193952716,0.00624285,88044.0,88003.0,0.02738288]
[1767193952717,0.05090847,88043.0,88015.0,0.01136169]
[1767193952918,0.05090847,88043.0,88014.0,0.05680864]
[1767193952919,1.850744,88041.0,88014.0,0.05013882]
[1767193953082,1.850744,88041.0,88012.0,0.01136208]
[1767193953083,1.00633,88043.0,88020.0,0.05013882]
[1767193953283,0.057,88042.0,88022.0,0.05013882]
[1767193953532,0.00010573,88043.0,88027.0,0.05013882]
[1767193953767,0.00010573,88043.0,88030.0,0.06815829]
[1767193953945,0.01152,88042.0,88033.0,0.01135937]
[1767193954168,0.001099,88033.0,88000.0,31.90864739]
[1767193954464,0.001099,88033.0,88014.0,0.01136182]
[1767193954465,0.01152,88032.0,88014.0,0.01136182]
[1767193954862,0.05090847,88041.0,88007.0,0.06165882]
[1767193954863,0.0491879,88041.0,88023.0,0.01136066]
[1767193955062,0.01152,88040.0,88023.0,0.06816359]
[1767193955269,0.01152,88040.0,88031.0,0.0002]
[1767193955498,0.01152,88041.0,88031.0,0.0002]
[1767193955700,0.00010573,88043.0,88040.0,0.01135847]
[1767193955904,0.01152,88050.0,88042.0,0.01135821]
[1767193956105,0.01152,88050.0,88047.0,0.01135757]
[1767193956307,0.05090847,88065.0,88050.0,0.01135718]
[1767193956506,0.0002,88068.0,88054.0,0.01135666]
[1767193956507,0.01152,88064.0,88054.0,0.01135666]
[1767193956755,0.01152,88063.0,88057.0,0.01135628]
[1767193956946,0.0002,88068.0,88050.0,0.05013882]
[1767193956947,0.01152,88062.0,88050.0,0.05013882]
[1767193957170,0.00479679,88052.0,88051.0,0.05013882]
[1767193957766,0.00479679,88052.0,88042.0,0.05049157]
[1767193957975,0.0002,88068.0,88043.0,0.05013882]
[1767193957976,0.00833629,88063.0,88043.0,0.05013882]
[1767193958294,0.05090847,88065.0,88042.0,0.00035275]
[1767193958484,0.0002,88068.0,88022.0,0.04548]
[1767193958485,0.05090847,88061.0,88022.0,0.05013882]
[1767193958688,0.000352,88042.0,88028.0,0.01136002]
[1767193958915,0.01152,88045.0,88023.0,0.01136066]
[1767193959118,0.01152,88045.0,88026.0,0.01136027]
[1767193959407,0.01152,88054.0,88033.0,0.05013882]
[1767193959618,0.00035493,88061.0,88040.0,0.05013882]
[1767193959619,0.01152,88053.0,88040.0,0.05013882]
[1767193959820,0.0238853,88057.0,88040.0,0.05013882]
[1767193959940,0.0103343,88054.0,88040.0,0.05013882]
[1767193960364,0.0103343,88054.0,88029.0,0.01135989]
[1767193960365,0.01036833,88053.0,88032.0,0.05013882]
[1767193960581,0.01036833,88052.0,88032.0,0.05013882]
[1767193960786,0.0103343,88054.0,88032.0,0.05013882]
[1767193960787,0.02389376,88053.0,88032.0,0.05013882]
[1767193960980,0.08517036,88052.0,88032.0,0.05013882]
[1767193961224,0.05090847,88050.0,88026.0,0.01152]
[1767193961381,0.03426189,88049.0,88024.0,0.05013882]
[1767193961616,0.01036813,88048.0,88031.0,0.05033882]
[1767193961822,0.03426572,88048.0,88031.0,0.05033882]
[1767193962043,0.02188972,88047.0,88031.0,0.0002]
[1767193962231,0.05090847,88045.0,88031.0,0.0002]
[1767193962467,0.05090847,88042.0,88011.0,0.01136221]
[1767193962628,0.05090847,88042.0,88003.0,0.22726381]
[1767193962629,0.03446648,88041.0,88021.0,0.0002]
[1767193962847,0.01036972,88040.0,88021.0,0.0002]
[1767193963048,0.01036972,88039.0,88021.0,0.0002]
[1767193963248,0.02188972,88038.0,88021.0,0.0002]
[1767193963452,0.0002,88041.0,88022.0,0.05013882]
[1767193963652,0.08052811,88057.0,88022.0,0.05013882]
[1767193963958,0.08052811,88057.0,88021.0,0.01156092]
[1767193963959,0.01152,88056.0,88030.0,0.05013882]
[1767193964161,0.05090847,88057.0,88034.0,0.05013882]
[1767193964358,0.07933341,88082.0,88034.0,0.05013882]
[1767193964359,0.01152,88056.0,88034.0,0.05013882]
[1767193964563,0.01152,88056.0,88033.0,0.01152]
[1767193964564,0.02961964,88062.0,88033.0,0.01152]
[1767193964784,0.03969139,88068.0,88047.0,0.05013882]
[1767193964785,0.0002,88068.0,88047.0,0.05013882]
[1767193964984,0.0002,88068.0,88047.0,0.05049375]
[1767193965328,0.05110847,88068.0,88047.0,0.05049375]
[1767193965546,0.03983801,88085.0,88054.0,0.05013882]
[1767193965662,0.04548,88076.0,88059.0,0.05013882]
[1767193965866,0.05923929,88096.0,88047.0,0.00035493]
[1767193965867,0.05090847,88093.0,88068.0,0.01135486]
[1767193966075,0.07933341,88114.0,88047.0,0.00035493]
[1767193966076,0.05090847,88102.0,88074.0,0.01135408]
[1767193966297,0.05090847,88102.0,88073.0,0.05013882]
[1767193966298,0.0002,88088.0,88073.0,0.05013882]
[1767193966501,0.0002,88088.0,88075.0,0.01135395]
[1767193966923,0.0002,88088.0,88076.0,0.06149265]
[1767193967086,0.01152,88097.0,88080.0,0.05013882]
[1767193967283,0.01152,88097.0,88072.0,0.01135434]
[1767193967284,0.01162646,88097.0,88072.0,0.05013882]
[1767193967489,0.01162646,88097.0,88073.0,0.05013882]
[1767193968142,0.00010646,88097.0,88077.0,0.0567685]
[1767193968349,0.00010646,88097.0,88070.0,0.01156]
[1767193968350,0.223641,88113.0,88084.0,0.05013882]
[1767193968546,0.05090847,88116.0,88084.0,0.05013882]
[1767193968547,0.0002,88107.0,88096.0,0.06149007]
[1767193968709,0.0006957,88141.0,88096.0,0.06149007]
[1767193968710,0.09074648,88132.0,88096.0,0.05013882]
[1767193968905,0.05090847,88127.0,88096.0,0.05013882]
[1767193969198,0.05090847,88127.0,88087.0,0.0002]
[1767193969199,0.05090847,88125.0,88088.0,0.01152]
[1767193969398,0.05090847,88121.0,88089.0,0.05013882]
[1767193969532,0.05090847,88121.0,88088.0,0.02287228]
[1767193969533,0.05090847,88119.0,88088.0,0.05013882]
[1767193969754,0.05090847,88117.0,88088.0,0.05013882]
[1767193969957,0.05090847,88117.0,88087.0,0.0002]
[1767193969958,0.05090847,88117.0,88093.0,0.06149045]
[1767193970151,0.05090847,88117.0,88093.0,0.05013882]
[1767193970405,0.04548,88118.0,88093.0,0.05013882]
[1767193970563,0.05090847,88117.0,88087.0,0.0002]
[1767193970766,0.05090847,88117.0,88087.0,0.05033882]
[1767193971029,0.05090847,88117.0,88090.0,0.05675963]
[1767193971240,0.05090847,88117.0,88090.0,0.05013882]
[1767193971442,0.04548,88118.0,88087.0,0.0002]
[1767193971443,0.000549,88090.0,88087.0,0.01155241]
[1767193971644,0.000549,88090.0,88087.0,0.06419425]
[1767193971838,0.000549,88090.0,88087.0,0.0002]
[1767193972044,0.07444588,88095.0,88084.0,0.00010646]
[1767193972184,0.07444588,88095.0,88070.0,0.06399425]
[1767193972393,0.07455224,88095.0,88070.0,0.07534885]
[1767193972628,0.07455224,88095.0,88073.0,0.06399425]
[1767193972787,0.07455224,88095.0,88070.0,0.06399425]
[1767193973396,0.01162636,88095.0,88075.0,0.06399425]
[1767193973609,0.00010636,88095.0,88075.0,0.0753482]
[1767193973774,0.00010636,88095.0,88077.0,0.06399425]
[1767193973974,0.00010636,88095.0,88067.0,0.22709767]
[1767193973975,0.06292588,88093.0,88070.0,0.0113546]
[1767193974175,0.06292588,88093.0,88069.0,0.01135473]
[1767193974398,0.06292588,88093.0,88068.0,0.05697419]
[1767193974399,0.06292588,88093.0,88074.0,0.01135408]
[1767193974721,0.01152,88093.0,88080.0,0.12076048]
[1767193974929,0.01152,88093.0,88069.0,0.06399425]
[1767193975089,0.07444588,88093.0,88073.0,0.01152]
[1767193975287,0.07444588,88093.0,88069.0,0.06399425]
[1767193975914,0.07444588,88093.0,88069.0,0.06385685]
[1767193977196,0.01152,88093.0,88069.0,0.06385685]
[1767193977402,0.01152,88093.0,88072.0,0.06399425]
[1767193977607,0.01152,88093.0,88072.0,0.07534859]
[1767193977851,0.01152,88093.0,88075.0,0.06399425]
[1767193977992,0.01152,88093.0,88068.0,0.0002]
[1767193977993,0.07444588,88093.0,88068.0,0.0002]
[1767193978192,0.07444588,88093.0,87980.0,0.05625957]
[1767193978193,0.01152,88093.0,88065.0,0.06399425]
[1767193978526,0.01152,88093.0,88078.0,0.06399425]
[1767193978841,0.01152,88093.0,88078.0,0.07534782]
[1767193978988,0.00010636,88095.0,88093.0,0.0004]
[1767193979193,0.01152,88105.0,88093.0,0.0004]
[1767193979395,0.06292588,88104.0,88085.0,0.0002]
[1767193979589,0.06292588,88104.0,88085.0,0.00015736]
[1767193980450,0.07039047,88104.0,88074.0,0.06399425]
[1767193980662,0.00055,88074.0,88058.0,0.00074698]
[1767193980865,0.00055,88074.0,88058.0,0.06474123]
[1767193981070,0.06292588,88073.0,88058.0,0.00074698]
[1767193981571,5.669035,88095.0,88058.0,0.00074698]
[1767193981744,0.0002,88105.0,88058.0,0.00074698]
[1767193981745,0.3007,88091.0,88073.0,0.000549]
[1767193981906,0.06292588,88093.0,88073.0,0.000549]
[1767193981907,0.06292588,88093.0,88073.0,0.01190321]
[1767193982107,0.06292588,88093.0,88071.0,0.01135447]
[1767193982361,0.06292588,88093.0,88069.0,0.01135473]
[1767193982362,0.01156,88094.0,88080.0,0.01135331]
[1767193982563,0.01156,88093.0,88079.0,0.01135344]
[1767193982731,0.01156,88093.0,88081.0,0.01135318]
[1767193982932,0.01156,88093.0,88078.0,0.01135357]
[1767193983133,0.01156,88093.0,88079.0,0.06399425]
[1767193983333,0.01156,88093.0,88070.0,0.0113546]
[1767193983334,0.06297946,88093.0,88070.0,0.0113546]
[1767193983539,5.358e-05,88093.0,88079.0,0.05676692]
[1767193983867,5.358e-05,88093.0,88074.0,0.05677015]
[1767193984026,5.358e-05,88093.0,88076.0,0.01135383]
[1767193984228,5.358e-05,88093.0,88073.0,0.01135421]
[1767193984459,0.06297946,88093.0,88068.0,0.06812899]
[1767193984628,0.06297946,88093.0,88065.0,0.06399425]
[1767193984629,0.06297946,88093.0,88065.0,0.01156]
[1767193984844,0.06297946,88093.0,88056.0,0.06399425]
[1767193985050,0.06297946,88093.0,88021.0,0.4]
[1767193985051,0.06292588,88089.0,88053.0,0.01156]
[1767193985254,5.358e-05,88093.0,88022.0,0.11796466]
[1767193985255,2.443901,88086.0,88051.0,0.01135705]
[1767193985446,0.06292588,88082.0,88055.0,0.01135653]
[1767193985694,0.06292588,88082.0,88051.0,0.06399425]
[1767193985695,0.00015114,88068.0,88045.0,0.06399425]
[1767193985943,0.00015114,88068.0,88041.0,0.02291834]
[1767193985944,0.06292588,88067.0,88046.0,0.01135769]
[1767193986093,0.06292588,88067.0,88042.0,0.01135821]
[1767193986094,0.06292588,88067.0,88043.0,0.01156]
[1767193986301,0.06292588,88067.0,88048.0,0.01135744]
[1767193986479,0.06292588,88067.0,88045.0,0.01135782]
[1767193986683,0.06292588,88067.0,88039.0,0.0113586]
[1767193986997,0.06292588,88067.0,88039.0,0.00035493]
[1767193987200,0.06292588,88065.0,88039.0,0.00035493]
[1767193988388,0.06292588,88063.0,88039.0,0.00035493]
[1767193988595,0.06292588,88061.0,88039.0,0.00035493]
[1767193989201,0.01156,88062.0,88044.0,0.05678956]
[1767193989407,0.01156,88062.0,88045.0,0.05678914]
[1767193989668,0.00035114,88068.0,88048.0,0.06814433]
[1767193989884,0.00035114,88068.0,88049.0,0.05678656]
[1767193990009,0.00035114,88068.0,88054.0,0.01135666]
[1767193990209,0.00035114,88068.0,88055.0,0.01135653]
[1767193990467,0.01156,88071.0,88056.0,0.06399425]
[1767193990699,0.04548,88084.0,88058.0,0.0002]
[1767193990700,0.06312588,88078.0,88058.0,0.0002]
[1767193991181,0.06312588,88078.0,88054.0,0.01156]
[1767193991384,0.06312588,88078.0,88051.0,0.01135705]
[1767193991583,0.06312588,88078.0,88041.0,0.06399425]
[1767193991584,0.06312588,88078.0,88054.0,0.01135666]
[1767193991969,0.06312588,88078.0,88055.0,0.01135653]
[1767193992171,0.06312588,88078.0,88056.0,0.0113564]
[1767193992393,0.06312588,88078.0,88058.0,0.06399425]
[1767193992394,0.0002,88078.0,88058.0,0.06399425]
[1767193992918,0.000349,88058.0,88051.0,0.01156]
[1767193993192,0.000349,88058.0,88049.0,0.06399425]
[1767193993418,0.00055,88049.0,88037.0,0.06399425]
[1767193993637,0.06292588,88068.0,88040.0,0.01156]
[1767193994078,0.01156,88070.0,88045.0,0.06399425]
[1767193994710,0.01156,88070.0,88040.0,0.06399425]
[1767193994923,0.01156,88070.0,88039.0,0.00035493]
[1767193994924,0.01156,88070.0,88049.0,0.06399425]
[1767193995171,0.00074691,88078.0,88070.0,0.0002]
[1767193995386,0.04548,88100.0,88070.0,0.0002]
[1767193995646,0.0002,88088.0,88070.0,0.0002]
[1767193995862,0.0002,88088.0,88072.0,0.06399425]
[1767193996115,0.02390965,88097.0,88068.0,0.0002]
[1767193996116,0.06292588,88109.0,88083.0,0.01135292]
[1767193996311,0.06292588,88109.0,88081.0,0.01135318]
[1767193996312,0.01156,88110.0,88090.0,0.07534627]
[1767193996482,0.05956977,88131.0,88090.0,0.07534627]
[1767193996483,0.01156,88120.0,88090.0,0.06399425]
[1767193996701,0.01156,88120.0,88090.0,0.01156]
[1767193996702,0.06292588,88106.0,88090.0,0.01156]
[1767193996904,0.06292588,88106.0,88082.0,0.01156]
[1767193997130,0.06303224,88106.0,88082.0,0.01156]
[1767193997479,0.06303224,88106.0,88086.0,0.01135254]
[1767193997682,0.00010636,88106.0,88085.0,0.06399425]
[1767193998057,0.00010636,88106.0,88088.0,0.06399425]
[1767193998261,0.00010636,88106.0,88082.0,0.02291305]
[1767193998262,0.00010636,88106.0,88082.0,0.01156]
[1767193998482,0.06303224,88106.0,88082.0,0.01156]
[1767193998757,0.06303224,88106.0,88083.0,0.01156]
[1767193998979,0.06292588,88104.0,88083.0,0.011317]
[1767193999191,0.06292588,88102.0,88083.0,0.00285075]
[1767193999843,0.00010636,88106.0,88083.0,0.08127293]
[1767194000011,0.00010636,88106.0,88073.0,0.07842218]
[1767194000012,0.07460705,88105.0,88073.0,0.07842218]
[1767194000238,0.07460705,88105.0,88074.0,0.01156]
[1767194000446,0.07460705,88103.0,88073.0,0.07842218]
[1767194000656,0.00010636,88106.0,88061.0,0.01135576]
[1767194000657,0.07460705,88101.0,88064.0,0.07842218]
[1767194000900,0.07460705,88099.0,88070.0,0.01156]